[Event "Titled Tuesday Blitz August 15 Early 2023"]
[White "Liu, Leonardo"]
[Black "Cheer_Down"]
[WhiteFideId "30965780"]
[WhiteElo "2213"]
[BlackElo "2346"]
[Result "1-0"]
[Round "6"]
[TimeControl "180+1"]
[Date "2023.08.15"]
[WhiteClock "0:01:53"]
[BlackClock "0:00:00"]
[Board "200"]

1. e4 {[%clk 0:03:00]}  e5 {[%clk 0:03:00]} 2. Nf3 {[%clk 0:03:00]}  Nc6 {[%clk 0:02:59]} 3. Bc4 {[%clk 0:03:00]}  Nf6 {[%clk 0:02:59]} 4. d3 {[%clk 0:03:00]}  Bc5 {[%clk 0:02:58]} 5. c3 {[%clk 0:03:01]}  O-O {[%clk 0:02:57]} 6. Bb3 {[%clk 0:03:01]}  d5 {[%clk 0:02:57]} 7. Nbd2 {[%clk 0:03:02]}  Re8 {[%clk 0:02:54]} 8. Qe2 {[%clk 0:03:02]}  h6 {[%clk 0:02:53]} 9. O-O {[%clk 0:03:02]}  Be6 {[%clk 0:02:53]} 10. Bc2 {[%clk 0:03:02]}  a5 {[%clk 0:02:50]} 11. a4 {[%clk 0:03:01]}  Qd7 {[%clk 0:02:42]} 12. Re1 {[%clk 0:03:01]}  Rad8 {[%clk 0:02:42]} 13. Nf1 {[%clk 0:03:02]}  d4 {[%clk 0:02:41]} 14. Ng3 {[%clk 0:03:02]}  Bf8 {[%clk 0:02:19]} 15. h3 {[%clk 0:03:01]}  Qd6 {[%clk 0:02:18]} 16. Nh4 {[%clk 0:03:00]}  g6 {[%clk 0:02:17]} 17. Qf3 {[%clk 0:02:59]}  Bg7 {[%clk 0:02:15]} 18. Bxh6 {[%clk 0:02:59]}  Bxh6 {[%clk 0:01:42]} 19. Qxf6 {[%clk 0:02:58]}  dxc3 {[%clk 0:01:33]} 20. bxc3 {[%clk 0:02:55]}  Qc5 {[%clk 0:01:33]} 21. Nxg6 {[%clk 0:02:48]}  fxg6 {[%clk 0:01:32]} 22. Qxg6+ {[%clk 0:02:48]}  Bg7 {[%clk 0:01:32]} 23. Nh5 {[%clk 0:02:48]}  Qf8 {[%clk 0:01:23]} 24. Re3 {[%clk 0:02:46]}  Qf7 {[%clk 0:01:19]} 25. Qg5 {[%clk 0:02:42]}  Kh8 {[%clk 0:01:15]} 26. Rg3 {[%clk 0:02:35]}  Rg8 {[%clk 0:01:14]} 27. Qh4 {[%clk 0:02:34]}  Bh6 {[%clk 0:01:11]} 28. Nf6 {[%clk 0:02:30]}  Rg6 {[%clk 0:01:10]} 29. Rxg6 {[%clk 0:02:23]}  Qxg6 {[%clk 0:01:10]} 30. Ng4 {[%clk 0:02:22]}  Bxg4 {[%clk 0:01:06]} 31. hxg4 {[%clk 0:02:23]}  Kg7 {[%clk 0:01:03]} 32. Rb1 {[%clk 0:02:18]}  b6 {[%clk 0:01:01]} 33. Rb5 {[%clk 0:02:13]}  Bd2 {[%clk 0:00:47]} 34. Rxe5 {[%clk 0:02:07]}  Nxe5 {[%clk 0:00:20]} 35. Qxd8 {[%clk 0:02:06]}  Qxg4 {[%clk 0:00:19]} 36. Qxc7+ {[%clk 0:02:06]}  Nf7 {[%clk 0:00:19]} 37. Bb3 {[%clk 0:02:02]}  Qg6 {[%clk 0:00:17]} 38. f4 {[%clk 0:01:59]}  Be3+ {[%clk 0:00:17]} 39. Kf1 {[%clk 0:01:57]}  Qf6 {[%clk 0:00:17]} 40. f5 {[%clk 0:01:53]}  Kh6 {[%clk 0:00:09]} 41. Qxf7 {[%clk 0:01:52]}  Qg5 {[%clk 0:00:10]} 42. Qg6+ {[%clk 0:01:51]}  Qxg6 {[%clk 0:00:10]} 43. fxg6 {[%clk 0:01:52]}  Kxg6 {[%clk 0:00:07]} 44. d4 {[%clk 0:01:53]}  Bd2 {[%clk 0:00:07]} 45. c4 {[%clk 0:01:53]}  Bc3 {[%clk 0:00:07]} 46. d5 {[%clk 0:01:50]}  Kf6 {[%clk 0:00:08]} 47. Ke2 {[%clk 0:01:50]}  Bb4 {[%clk 0:00:08]} 48. Ke3 {[%clk 0:01:50]}  Bc5+ {[%clk 0:00:08]} 49. Kf4 {[%clk 0:01:50]}  Bd6+ {[%clk 0:00:08]} 50. Kf3 {[%clk 0:01:50]}  Ke5 {[%clk 0:00:09]} 51. g4 {[%clk 0:01:51]}  Be7 {[%clk 0:00:09]} 52. Ke3 {[%clk 0:01:50]}  Bg5+ {[%clk 0:00:09]} 53. Kd3 {[%clk 0:01:50]}  Be7 {[%clk 0:00:08]} 54. Bd1 {[%clk 0:01:50]}  Bg5 {[%clk 0:00:08]} 55. Bf3 {[%clk 0:01:51]}  Be7 {[%clk 0:00:08]} 56. Ke2 {[%clk 0:01:51]}  Bg5 {[%clk 0:00:08]} 57. Bg2 {[%clk 0:01:51]}  Bh4 {[%clk 0:00:08]} 58. Kd3 {[%clk 0:01:51]}  Bg5 {[%clk 0:00:08]} 59. Kc3 {[%clk 0:01:51]}  Be7 {[%clk 0:00:08]} 60. Kb3 {[%clk 0:01:51]}  Bg5 {[%clk 0:00:08]} 61. c5 {[%clk 0:01:52]}  bxc5 {[%clk 0:00:07]} 62. Kc4 {[%clk 0:01:53]}  Bd2 {[%clk 0:00:04]} 63. Kxc5 {[%clk 0:01:53]}  Bb4+ {[%clk 0:00:00]} 64. Kc6 {[%clk 0:01:53]} 1-0


[Site "https://www.chess.com"]

[Event "Titled Tuesday Blitz August 15 Early 2023"]
[White "Durarbayli, Vasif"]
[Black "Bortnyk, Olexandr"]
[WhiteFideId "13402935"]
[BlackFideId "14120828"]
[WhiteElo "2888"]
[BlackElo "3099"]
[Result "0-1"]
[Round "7"]
[TimeControl "180+1"]
[Date "2023.08.15"]
[WhiteClock "0:00:18"]
[BlackClock "0:01:42"]
[Board "2"]

1. e4 {[%clk 0:03:00]}  Nf6 {[%clk 0:03:00]} 2. e5 {[%clk 0:03:01]}  Nd5 {[%clk 0:03:00]} 3. d4 {[%clk 0:03:01]}  d6 {[%clk 0:03:01]} 4. c4 {[%clk 0:03:01]}  Nb6 {[%clk 0:03:01]} 5. exd6 {[%clk 0:03:02]}  exd6 {[%clk 0:03:02]} 6. Nc3 {[%clk 0:03:02]}  Be7 {[%clk 0:03:03]} 7. Bd3 {[%clk 0:03:03]}  O-O {[%clk 0:03:03]} 8. Nge2 {[%clk 0:03:03]}  c6 {[%clk 0:03:04]} 9. Qc2 {[%clk 0:03:01]}  g6 {[%clk 0:03:02]} 10. O-O {[%clk 0:02:42]}  Na6 {[%clk 0:03:02]} 11. a3 {[%clk 0:02:42]}  d5 {[%clk 0:03:02]} 12. c5 {[%clk 0:02:42]}  Nd7 {[%clk 0:03:03]} 13. b4 {[%clk 0:02:42]}  Nc7 {[%clk 0:03:03]} 14. Nf4 {[%clk 0:02:05]}  Bf6 {[%clk 0:03:01]} 15. Be3 {[%clk 0:02:04]}  Re8 {[%clk 0:03:01]} 16. Rfe1 {[%clk 0:02:02]}  Nf8 {[%clk 0:03:02]} 17. b5 {[%clk 0:01:56]}  Nfe6 {[%clk 0:03:00]} 18. Nxe6 {[%clk 0:01:55]}  Nxe6 {[%clk 0:02:59]} 19. bxc6 {[%clk 0:01:50]}  bxc6 {[%clk 0:02:56]} 20. Ne2 {[%clk 0:01:49]}  Qa5 {[%clk 0:02:49]} 21. Bd2 {[%clk 0:01:37]}  Qc7 {[%clk 0:02:46]} 22. Be3 {[%clk 0:01:37]}  Rb8 {[%clk 0:02:37]} 23. Qa4 {[%clk 0:01:31]}  Bd7 {[%clk 0:02:26]} 24. Rab1 {[%clk 0:01:31]}  h5 {[%clk 0:02:25]} 25. Rb4 {[%clk 0:01:19]}  Rxb4 {[%clk 0:02:17]} 26. axb4 {[%clk 0:01:19]}  Nxd4 {[%clk 0:02:14]} 27. Bxd4 {[%clk 0:00:52]}  Bxd4 {[%clk 0:02:15]} 28. Qc2 {[%clk 0:00:52]}  Kg7 {[%clk 0:01:54]} 29. Rd1 {[%clk 0:00:37]}  Be5 {[%clk 0:01:51]} 30. g3 {[%clk 0:00:37]}  a5 {[%clk 0:01:51]} 31. Rb1 {[%clk 0:00:29]}  axb4 {[%clk 0:01:49]} 32. Rxb4 {[%clk 0:00:30]}  Qa5 {[%clk 0:01:41]} 33. Rb7 {[%clk 0:00:21]}  Qe1+ {[%clk 0:01:41]} 34. Kg2 {[%clk 0:00:21]}  Bh3+ {[%clk 0:01:41]} 35. Kxh3 {[%clk 0:00:18]}  Qf1+ {[%clk 0:01:42]} 0-1


[Site "https://www.chess.com"]

[Event "Titled Tuesday Blitz August 15 Early 2023"]
[White "Fedoseev, Vladimir"]
[Black "Korobov, Anton"]
[WhiteFideId "24130737"]
[BlackFideId "14105730"]
[WhiteElo "3110"]
[BlackElo "3030"]
[Result "1-0"]
[Round "7"]
[TimeControl "180+1"]
[Date "2023.08.15"]
[WhiteClock "0:00:54"]
[BlackClock "0:00:09"]
[Board "3"]

1. Nf3 {[%clk 0:03:00]}  d5 {[%clk 0:02:59]} 2. g3 {[%clk 0:03:01]}  c6 {[%clk 0:03:00]} 3. Bg2 {[%clk 0:03:01]}  Bg4 {[%clk 0:03:00]} 4. O-O {[%clk 0:03:00]}  Nd7 {[%clk 0:03:01]} 5. d3 {[%clk 0:03:00]}  e6 {[%clk 0:03:01]} 6. e4 {[%clk 0:03:00]}  Bd6 {[%clk 0:03:01]} 7. Qe1 {[%clk 0:02:59]}  Ne7 {[%clk 0:03:01]} 8. Nd4 {[%clk 0:02:52]}  O-O {[%clk 0:02:52]} 9. h3 {[%clk 0:02:51]}  Bh5 {[%clk 0:02:52]} 10. exd5 {[%clk 0:02:47]}  cxd5 {[%clk 0:02:29]} 11. Nxe6 {[%clk 0:02:42]}  fxe6 {[%clk 0:02:10]} 12. Qxe6+ {[%clk 0:02:42]}  Bf7 {[%clk 0:01:53]} 13. Qxd6 {[%clk 0:02:41]}  Rc8 {[%clk 0:01:52]} 14. Nc3 {[%clk 0:02:41]}  Nf6 {[%clk 0:01:45]} 15. Bf4 {[%clk 0:02:22]}  d4 {[%clk 0:01:32]} 16. Nb5 {[%clk 0:02:20]}  Rxc2 {[%clk 0:01:32]} 17. b3 {[%clk 0:02:00]}  Nc6 {[%clk 0:00:49]} 18. Rfc1 {[%clk 0:01:52]}  Rxc1+ {[%clk 0:00:47]} 19. Rxc1 {[%clk 0:01:51]}  Bd5 {[%clk 0:00:42]} 20. Bxd5+ {[%clk 0:01:34]}  Nxd5 {[%clk 0:00:41]} 21. Qe6+ {[%clk 0:01:35]}  Kh8 {[%clk 0:00:40]} 22. Bd6 {[%clk 0:01:35]}  Qf6 {[%clk 0:00:20]} 23. Qxd5 {[%clk 0:01:23]}  Qxf2+ {[%clk 0:00:20]} 24. Kh1 {[%clk 0:01:23]}  Rf3 {[%clk 0:00:20]} 25. Nxd4 {[%clk 0:01:05]}  Rxd3 {[%clk 0:00:15]} 26. Qe4 {[%clk 0:00:55]}  Re3 {[%clk 0:00:14]} 27. Qf4 {[%clk 0:00:54]}  Re1+ {[%clk 0:00:11]} 28. Rxe1 {[%clk 0:00:54]}  Qxe1+ {[%clk 0:00:09]} 29. Kg2 {[%clk 0:00:54]} 1-0


[Site "https://www.chess.com"]

[Event "Titled Tuesday Blitz August 15 Early 2023"]
[White "Drygalov, Andrey"]
[Black "Dubov, Daniil"]
[WhiteFideId "24171735"]
[BlackFideId "24126055"]
[WhiteElo "2927"]
[BlackElo "3069"]
[Result "1-0"]
[Round "7"]
[TimeControl "180+1"]
[Date "2023.08.15"]
[WhiteClock "0:00:04"]
[BlackClock "0:00:01"]
[Board "7"]

1. e4 {[%clk 0:02:59]}  e5 {[%clk 0:02:59]} 2. Nf3 {[%clk 0:02:59]}  Nc6 {[%clk 0:03:00]} 3. Bc4 {[%clk 0:03:00]}  Nf6 {[%clk 0:02:59]} 4. d3 {[%clk 0:03:00]}  Be7 {[%clk 0:03:00]} 5. O-O {[%clk 0:03:01]}  O-O {[%clk 0:02:59]} 6. Re1 {[%clk 0:03:01]}  d6 {[%clk 0:02:59]} 7. a4 {[%clk 0:03:02]}  Be6 {[%clk 0:02:57]} 8. Nc3 {[%clk 0:03:02]}  Bxc4 {[%clk 0:02:56]} 9. dxc4 {[%clk 0:03:03]}  a5 {[%clk 0:02:57]} 10. Nd5 {[%clk 0:03:02]}  b6 {[%clk 0:02:55]} 11. h3 {[%clk 0:03:01]}  Nb8 {[%clk 0:02:54]} 12. Qd3 {[%clk 0:02:58]}  Na6 {[%clk 0:02:52]} 13. Be3 {[%clk 0:02:57]}  Nd7 {[%clk 0:02:49]} 14. c3 {[%clk 0:02:40]}  Nac5 {[%clk 0:02:48]} 15. Qc2 {[%clk 0:02:40]}  Ne6 {[%clk 0:02:48]} 16. b4 {[%clk 0:02:37]}  Kh8 {[%clk 0:02:46]} 17. Rad1 {[%clk 0:02:35]}  g6 {[%clk 0:02:36]} 18. Nh2 {[%clk 0:02:23]}  Bg5 {[%clk 0:02:31]} 19. Bxg5 {[%clk 0:02:21]}  Qxg5 {[%clk 0:02:32]} 20. Nf3 {[%clk 0:02:15]}  Qh6 {[%clk 0:02:24]} 21. Nxc7 {[%clk 0:02:01]}  Nxc7 {[%clk 0:02:04]} 22. Rxd6 {[%clk 0:01:59]}  Nb8 {[%clk 0:01:49]} 23. Rxb6 {[%clk 0:01:55]}  Ne6 {[%clk 0:01:43]} 24. Nxe5 {[%clk 0:01:42]}  Qf4 {[%clk 0:01:37]} 25. Nd3 {[%clk 0:01:29]}  Qc7 {[%clk 0:01:36]} 26. c5 {[%clk 0:01:29]}  axb4 {[%clk 0:01:33]} 27. cxb4 {[%clk 0:01:25]}  Nc6 {[%clk 0:01:33]} 28. Qc3+ {[%clk 0:01:13]}  Kg8 {[%clk 0:01:28]} 29. b5 {[%clk 0:00:44]}  Ncd4 {[%clk 0:01:28]} 30. a5 {[%clk 0:00:43]}  Rac8 {[%clk 0:01:06]} 31. Kh1 {[%clk 0:00:27]}  Rfd8 {[%clk 0:01:01]} 32. Rb1 {[%clk 0:00:10]}  Ng5 {[%clk 0:00:47]} 33. Nb4 {[%clk 0:00:06]}  Qf4 {[%clk 0:00:15]} 34. Qe3 {[%clk 0:00:06]}  Qh4 {[%clk 0:00:09]} 35. Nd5 {[%clk 0:00:04]}  Nxe4 {[%clk 0:00:08]} 36. Qxe4 {[%clk 0:00:04]}  Qxf2 {[%clk 0:00:05]} 37. Ne7+ {[%clk 0:00:04]}  Kf8 {[%clk 0:00:04]} 38. Nxc8 {[%clk 0:00:05]}  Ne2 {[%clk 0:00:04]} 39. Qf3 {[%clk 0:00:05]}  Ng3+ {[%clk 0:00:01]} 40. Kh2 {[%clk 0:00:05]}  Nf1+ {[%clk 0:00:01]} 41. Rxf1 {[%clk 0:00:04]} 1-0


[Site "https://www.chess.com"]

[Event "Titled Tuesday Blitz August 15 Early 2023"]
[White "Lazavik, Denis"]
[Black "Kazakouski, Valery"]
[WhiteFideId "13515110"]
[BlackFideId "13507443"]
[WhiteElo "3050"]
[BlackElo "2924"]
[Result "1/2-1/2"]
[Round "7"]
[TimeControl "180+1"]
[Date "2023.08.15"]
[WhiteClock "0:00:14"]
[BlackClock "0:00:08"]
[Board "8"]

1. d4 {[%clk 0:03:00]}  Nf6 {[%clk 0:02:58]} 2. c4 {[%clk 0:03:01]}  e6 {[%clk 0:02:59]} 3. Nf3 {[%clk 0:03:02]}  d5 {[%clk 0:02:59]} 4. g3 {[%clk 0:03:02]}  dxc4 {[%clk 0:02:57]} 5. Bg2 {[%clk 0:03:02]}  c6 {[%clk 0:02:57]} 6. a4 {[%clk 0:02:56]}  Bb4+ {[%clk 0:02:54]} 7. Bd2 {[%clk 0:02:54]}  a5 {[%clk 0:02:54]} 8. O-O {[%clk 0:02:42]}  O-O {[%clk 0:02:53]} 9. Qc2 {[%clk 0:02:25]}  Bxd2 {[%clk 0:02:51]} 10. Nbxd2 {[%clk 0:02:25]}  b5 {[%clk 0:02:51]} 11. b3 {[%clk 0:02:24]}  cxb3 {[%clk 0:02:51]} 12. Nxb3 {[%clk 0:02:25]}  b4 {[%clk 0:02:44]} 13. e4 {[%clk 0:02:25]}  Nbd7 {[%clk 0:02:40]} 14. Rfd1 {[%clk 0:02:22]}  Qb6 {[%clk 0:02:36]} 15. Rac1 {[%clk 0:02:21]}  Bb7 {[%clk 0:02:33]} 16. e5 {[%clk 0:02:18]}  Nd5 {[%clk 0:02:29]} 17. Ng5 {[%clk 0:02:18]}  g6 {[%clk 0:02:22]} 18. Ne4 {[%clk 0:02:18]}  Rad8 {[%clk 0:02:04]} 19. Qd2 {[%clk 0:02:17]}  Kg7 {[%clk 0:02:03]} 20. h4 {[%clk 0:02:15]}  h5 {[%clk 0:01:38]} 21. Qg5 {[%clk 0:02:12]}  Rb8 {[%clk 0:01:34]} 22. Bf3 {[%clk 0:02:03]}  Qd8 {[%clk 0:01:34]} 23. Qxd8 {[%clk 0:01:59]}  Rfxd8 {[%clk 0:01:28]} 24. Nxa5 {[%clk 0:02:00]}  N7b6 {[%clk 0:01:13]} 25. Ra1 {[%clk 0:01:43]}  Ba8 {[%clk 0:01:07]} 26. Nb3 {[%clk 0:01:42]}  Nc3 {[%clk 0:00:55]} 27. Nxc3 {[%clk 0:01:41]}  bxc3 {[%clk 0:00:55]} 28. Nc5 {[%clk 0:01:40]}  Nd7 {[%clk 0:00:38]} 29. Rdc1 {[%clk 0:00:43]}  Nxc5 {[%clk 0:00:27]} 30. dxc5 {[%clk 0:00:44]}  Rb3 {[%clk 0:00:28]} 31. Bd1 {[%clk 0:00:37]}  Rb2 {[%clk 0:00:28]} 32. Rxc3 {[%clk 0:00:35]}  Rdd2 {[%clk 0:00:27]} 33. a5 {[%clk 0:00:19]}  Rxf2 {[%clk 0:00:27]} 34. Bf3 {[%clk 0:00:20]}  Ra2 {[%clk 0:00:27]} 35. Rb1 {[%clk 0:00:06]}  Rfd2 {[%clk 0:00:25]} 36. Rd1 {[%clk 0:00:03]}  Rxd1+ {[%clk 0:00:21]} 37. Bxd1 {[%clk 0:00:04]}  Ra1 {[%clk 0:00:21]} 38. Rd3 {[%clk 0:00:03]}  Rxa5 {[%clk 0:00:22]} 39. Rd7 {[%clk 0:00:02]}  Rxc5 {[%clk 0:00:21]} 40. Bb3 {[%clk 0:00:03]}  Rxe5 {[%clk 0:00:19]} 41. Ra7 {[%clk 0:00:03]}  Re3 {[%clk 0:00:19]} 42. Ba2 {[%clk 0:00:03]}  Rxg3+ {[%clk 0:00:10]} 43. Kf2 {[%clk 0:00:03]}  Rg4 {[%clk 0:00:10]} 44. Bxe6 {[%clk 0:00:03]}  Rxh4 {[%clk 0:00:10]} 45. Rxf7+ {[%clk 0:00:03]}  Kh6 {[%clk 0:00:09]} 46. Ra7 {[%clk 0:00:04]}  Re4 {[%clk 0:00:09]} 47. Bf7 {[%clk 0:00:03]}  c5 {[%clk 0:00:07]} 48. Bxg6 {[%clk 0:00:01]}  Kxg6 {[%clk 0:00:06]} 49. Rxa8 {[%clk 0:00:02]}  c4 {[%clk 0:00:05]} 50. Rc8 {[%clk 0:00:02]}  Rg4 {[%clk 0:00:06]} 51. Kf3 {[%clk 0:00:03]}  Kg5 {[%clk 0:00:06]} 52. Rc5+ {[%clk 0:00:03]}  Kh4 {[%clk 0:00:07]} 53. Rd5 {[%clk 0:00:03]}  c3 {[%clk 0:00:06]} 54. Rc5 {[%clk 0:00:03]}  Rg3+ {[%clk 0:00:06]} 55. Kf4 {[%clk 0:00:04]}  Rd3 {[%clk 0:00:05]} 56. Ke4 {[%clk 0:00:05]}  Rh3 {[%clk 0:00:05]} 57. Kf4 {[%clk 0:00:05]}  Rg3 {[%clk 0:00:05]} 58. Rc8 {[%clk 0:00:03]}  Rg4+ {[%clk 0:00:04]} 59. Kf5 {[%clk 0:00:02]}  Rg3 {[%clk 0:00:03]} 60. Kf4 {[%clk 0:00:03]}  Rg1 {[%clk 0:00:02]} 61. Rxc3 {[%clk 0:00:03]}  Rf1+ {[%clk 0:00:03]} 62. Ke4 {[%clk 0:00:03]}  Kg4 {[%clk 0:00:03]} 63. Rc8 {[%clk 0:00:04]}  Re1+ {[%clk 0:00:03]} 64. Kd3 {[%clk 0:00:04]}  h4 {[%clk 0:00:04]} 65. Rg8+ {[%clk 0:00:04]}  Kf3 {[%clk 0:00:05]} 66. Kd2 {[%clk 0:00:04]}  Re7 {[%clk 0:00:04]} 67. Rf8+ {[%clk 0:00:05]}  Kg2 {[%clk 0:00:05]} 68. Rg8+ {[%clk 0:00:05]}  Kh2 {[%clk 0:00:06]} 69. Rh8 {[%clk 0:00:05]}  h3 {[%clk 0:00:06]} 70. Rg8 {[%clk 0:00:06]}  Kh1 {[%clk 0:00:07]} 71. Rg6 {[%clk 0:00:06]}  Re8 {[%clk 0:00:05]} 72. Rg7 {[%clk 0:00:06]}  Kh2 {[%clk 0:00:04]} 73. Rg6 {[%clk 0:00:06]}  Re5 {[%clk 0:00:03]} 74. Rg7 {[%clk 0:00:06]}  Ra5 {[%clk 0:00:03]} 75. Ke2 {[%clk 0:00:06]}  Ra2+ {[%clk 0:00:03]} 76. Kf3 {[%clk 0:00:07]}  Rg2 {[%clk 0:00:03]} 77. Rh7 {[%clk 0:00:07]}  Rg1 {[%clk 0:00:03]} 78. Kf2 {[%clk 0:00:07]}  Rg8 {[%clk 0:00:03]} 79. Rf7 {[%clk 0:00:08]}  Kh1 {[%clk 0:00:03]} 80. Rf6 {[%clk 0:00:08]}  h2 {[%clk 0:00:03]} 81. Rf7 {[%clk 0:00:09]}  Rg2+ {[%clk 0:00:03]} 82. Kf1 {[%clk 0:00:09]}  Rg1+ {[%clk 0:00:03]} 83. Kf2 {[%clk 0:00:10]}  Rg2+ {[%clk 0:00:03]} 84. Kf1 {[%clk 0:00:10]}  Ra2 {[%clk 0:00:04]} 85. Rf8 {[%clk 0:00:10]}  Ra1+ {[%clk 0:00:04]} 86. Kf2 {[%clk 0:00:11]}  Ra2+ {[%clk 0:00:05]} 87. Kf1 {[%clk 0:00:11]}  Ra3 {[%clk 0:00:06]} 88. Kf2 {[%clk 0:00:11]}  Ra4 {[%clk 0:00:06]} 89. Rf7 {[%clk 0:00:12]}  Ra5 {[%clk 0:00:06]} 90. Rf8 {[%clk 0:00:12]}  Ra6 {[%clk 0:00:06]} 91. Rf7 {[%clk 0:00:12]}  Ra2+ {[%clk 0:00:07]} 92. Kf1 {[%clk 0:00:12]}  Ra1+ {[%clk 0:00:07]} 93. Kf2 {[%clk 0:00:13]}  Ra2+ {[%clk 0:00:07]} 94. Kf1 {[%clk 0:00:13]}  Ra1+ {[%clk 0:00:08]} 95. Kf2 {[%clk 0:00:14]}  Ra2+ {[%clk 0:00:08]} 1/2-1/2


[Site "https://www.chess.com"]

[Event "Titled Tuesday Blitz August 15 Early 2023"]
[White "Deac, Bogdan-Daniel"]
[Black "Donchenko, Alexander"]
[WhiteFideId "1226380"]
[BlackFideId "24603295"]
[WhiteElo "3020"]
[BlackElo "2901"]
[Result "0-1"]
[Round "7"]
[TimeControl "180+1"]
[Date "2023.08.15"]
[WhiteClock "0:00:02"]
[BlackClock "0:00:49"]
[Board "10"]

1. e4 {[%clk 0:03:00]}  c5 {[%clk 0:02:59]} 2. Nf3 {[%clk 0:03:00]}  d6 {[%clk 0:03:00]} 3. Bb5+ {[%clk 0:03:01]}  Nd7 {[%clk 0:03:00]} 4. d4 {[%clk 0:03:01]}  cxd4 {[%clk 0:03:00]} 5. Qxd4 {[%clk 0:03:01]}  a6 {[%clk 0:03:00]} 6. Be2 {[%clk 0:03:02]}  Ngf6 {[%clk 0:03:00]} 7. O-O {[%clk 0:03:02]}  e5 {[%clk 0:03:00]} 8. Qe3 {[%clk 0:03:03]}  Nc5 {[%clk 0:02:59]} 9. Nfd2 {[%clk 0:03:03]}  h5 {[%clk 0:02:55]} 10. Rd1 {[%clk 0:03:02]}  Ng4 {[%clk 0:02:48]} 11. Qc3 {[%clk 0:02:35]}  Qh4 {[%clk 0:02:41]} 12. Qg3 {[%clk 0:02:33]}  Qxg3 {[%clk 0:02:40]} 13. hxg3 {[%clk 0:02:34]}  Be6 {[%clk 0:02:35]} 14. Nc3 {[%clk 0:02:29]}  Be7 {[%clk 0:02:28]} 15. Nc4 {[%clk 0:02:22]}  Rd8 {[%clk 0:02:27]} 16. f3 {[%clk 0:02:21]}  Nf6 {[%clk 0:02:27]} 17. Nb6 {[%clk 0:02:20]}  Ncd7 {[%clk 0:02:09]} 18. Nbd5 {[%clk 0:02:10]}  Nxd5 {[%clk 0:02:10]} 19. Nxd5 {[%clk 0:02:11]}  Nf6 {[%clk 0:02:10]} 20. Nxe7 {[%clk 0:02:07]}  Kxe7 {[%clk 0:02:10]} 21. c4 {[%clk 0:02:08]}  Nd7 {[%clk 0:02:02]} 22. Be3 {[%clk 0:01:55]}  Rc8 {[%clk 0:02:00]} 23. b3 {[%clk 0:01:52]}  a5 {[%clk 0:01:58]} 24. f4 {[%clk 0:01:13]}  f6 {[%clk 0:01:51]} 25. Rd2 {[%clk 0:01:12]}  Rc6 {[%clk 0:01:49]} 26. Rad1 {[%clk 0:00:53]}  Bg4 {[%clk 0:01:40]} 27. Bf3 {[%clk 0:00:40]}  b6 {[%clk 0:01:38]} 28. Kf2 {[%clk 0:00:36]}  Ra8 {[%clk 0:01:34]} 29. Bxg4 {[%clk 0:00:19]}  hxg4 {[%clk 0:01:35]} 30. Rh1 {[%clk 0:00:19]}  a4 {[%clk 0:01:32]} 31. Rh4 {[%clk 0:00:19]}  axb3 {[%clk 0:01:31]} 32. axb3 {[%clk 0:00:20]}  Ra3 {[%clk 0:01:25]} 33. Rb2 {[%clk 0:00:20]}  Nc5 {[%clk 0:01:21]} 34. Bxc5 {[%clk 0:00:15]}  bxc5 {[%clk 0:01:22]} 35. Rxg4 {[%clk 0:00:08]}  Kf7 {[%clk 0:01:22]} 36. fxe5 {[%clk 0:00:07]}  dxe5 {[%clk 0:01:21]} 37. b4 {[%clk 0:00:07]}  Rb6 {[%clk 0:01:12]} 38. b5 {[%clk 0:00:07]}  Rc3 {[%clk 0:01:10]} 39. Ra2 {[%clk 0:00:06]}  Rb7 {[%clk 0:01:10]} 40. Ra4 {[%clk 0:00:06]}  Rd7 {[%clk 0:01:08]} 41. Rh4 {[%clk 0:00:05]}  Rd2+ {[%clk 0:01:07]} 42. Kg1 {[%clk 0:00:05]}  Rcc2 {[%clk 0:01:06]} 43. Ra7+ {[%clk 0:00:04]}  Ke6 {[%clk 0:01:01]} 44. Ra6+ {[%clk 0:00:04]}  Kd7 {[%clk 0:00:58]} 45. Ra7+ {[%clk 0:00:04]}  Kd6 {[%clk 0:00:58]} 46. Rxg7 {[%clk 0:00:04]}  Rxg2+ {[%clk 0:00:57]} 47. Kf1 {[%clk 0:00:05]}  Rcf2+ {[%clk 0:00:52]} 48. Ke1 {[%clk 0:00:04]}  Ra2 {[%clk 0:00:52]} 49. Kf1 {[%clk 0:00:02]}  Rgc2 {[%clk 0:00:49]} 0-1


[Site "https://www.chess.com"]

[Event "Titled Tuesday Blitz August 15 Early 2023"]
[White "Bacrot, Etienne"]
[Black "Bluebaum, Matthias"]
[WhiteFideId "605506"]
[BlackFideId "24651516"]
[WhiteElo "2877"]
[BlackElo "3011"]
[Result "0-1"]
[Round "7"]
[TimeControl "180+1"]
[Date "2023.08.15"]
[WhiteClock "0:00:03"]
[BlackClock "0:00:53"]
[Board "11"]

1. e4 {[%clk 0:03:00]}  e6 {[%clk 0:03:00]} 2. d4 {[%clk 0:03:00]}  d5 {[%clk 0:03:00]} 3. exd5 {[%clk 0:03:01]}  exd5 {[%clk 0:03:01]} 4. Nf3 {[%clk 0:03:01]}  Nc6 {[%clk 0:03:02]} 5. Bb5 {[%clk 0:03:01]}  a6 {[%clk 0:03:02]} 6. Bxc6+ {[%clk 0:03:01]}  bxc6 {[%clk 0:03:03]} 7. O-O {[%clk 0:03:01]}  Bd6 {[%clk 0:03:04]} 8. Re1+ {[%clk 0:03:02]}  Ne7 {[%clk 0:03:04]} 9. b3 {[%clk 0:02:59]}  O-O {[%clk 0:03:01]} 10. Ba3 {[%clk 0:02:58]}  Bg4 {[%clk 0:02:59]} 11. Bxd6 {[%clk 0:02:55]}  cxd6 {[%clk 0:02:56]} 12. Qd3 {[%clk 0:02:50]}  Ng6 {[%clk 0:02:55]} 13. Nbd2 {[%clk 0:02:48]}  Qf6 {[%clk 0:02:53]} 14. Re3 {[%clk 0:02:36]}  Nf4 {[%clk 0:02:43]} 15. Qf1 {[%clk 0:02:17]}  c5 {[%clk 0:02:17]} 16. dxc5 {[%clk 0:02:02]}  dxc5 {[%clk 0:02:18]} 17. Ne5 {[%clk 0:01:58]}  Bf5 {[%clk 0:02:06]} 18. Rae1 {[%clk 0:01:51]}  d4 {[%clk 0:01:47]} 19. Rf3 {[%clk 0:01:46]}  Qg5 {[%clk 0:01:48]} 20. Ne4 {[%clk 0:01:29]}  Bxe4 {[%clk 0:01:34]} 21. Rxe4 {[%clk 0:01:29]}  Ng6 {[%clk 0:01:35]} 22. h4 {[%clk 0:01:10]}  Nxh4 {[%clk 0:01:15]} 23. Rg3 {[%clk 0:01:06]}  Qf5 {[%clk 0:01:15]} 24. Qd3 {[%clk 0:00:41]}  Ng6 {[%clk 0:01:11]} 25. Nc6 {[%clk 0:00:39]}  Qf6 {[%clk 0:01:04]} 26. Na5 {[%clk 0:00:19]}  Rfe8 {[%clk 0:01:05]} 27. Nc4 {[%clk 0:00:17]}  Qc6 {[%clk 0:01:01]} 28. Rgg4 {[%clk 0:00:15]}  h5 {[%clk 0:00:53]} 29. Rxg6 {[%clk 0:00:03]} 0-1


[Site "https://www.chess.com"]

[Event "Titled Tuesday Blitz August 15 Early 2023"]
[White "Lagarde, Maxime"]
[Black "Sadhwani, Raunak"]
[WhiteFideId "662399"]
[BlackFideId "35093487"]
[WhiteElo "2860"]
[BlackElo "3006"]
[Result "1-0"]
[Round "7"]
[TimeControl "180+1"]
[Date "2023.08.15"]
[WhiteClock "0:02:18"]
[BlackClock "0:01:33"]
[Board "13"]

1. d4 {[%clk 0:03:00]}  Nf6 {[%clk 0:02:54]} 2. Bg5 {[%clk 0:03:00]}  d5 {[%clk 0:02:50]} 3. e3 {[%clk 0:03:00]}  c5 {[%clk 0:02:47]} 4. Bxf6 {[%clk 0:02:59]}  gxf6 {[%clk 0:02:43]} 5. dxc5 {[%clk 0:02:59]}  Nc6 {[%clk 0:02:42]} 6. Nf3 {[%clk 0:02:57]}  e5 {[%clk 0:02:42]} 7. Be2 {[%clk 0:02:57]}  Bxc5 {[%clk 0:02:42]} 8. O-O {[%clk 0:02:58]}  Be6 {[%clk 0:02:41]} 9. Nbd2 {[%clk 0:02:57]}  Qb6 {[%clk 0:02:38]} 10. c4 {[%clk 0:02:56]}  Rd8 {[%clk 0:02:34]} 11. cxd5 {[%clk 0:02:53]}  Bxd5 {[%clk 0:02:35]} 12. Qc2 {[%clk 0:02:48]}  Nb4 {[%clk 0:02:33]} 13. Qf5 {[%clk 0:02:43]}  Qe6 {[%clk 0:02:22]} 14. Qh5 {[%clk 0:02:40]}  Bxa2 {[%clk 0:02:17]} 15. Rxa2 {[%clk 0:02:37]}  Nxa2 {[%clk 0:01:57]} 16. Bc4 {[%clk 0:02:37]}  Qe7 {[%clk 0:01:50]} 17. Bxa2 {[%clk 0:02:34]}  Kd7 {[%clk 0:01:46]} 18. Ne4 {[%clk 0:02:31]}  Bb6 {[%clk 0:01:46]} 19. Rc1 {[%clk 0:02:27]}  Ke8 {[%clk 0:01:33]} 20. Nh4 {[%clk 0:02:18]} 1-0


[Site "https://www.chess.com"]